bitfinex/quotes_SOLUSD_20260224
["timestamp","ask_amount","ask_price","bid_price","bid_amount"]
[1771975385483,1.53680609,79.259,79.221,1.67049681]
[1771975385790,4.89235613,79.28,79.221,1.67049681]
[1771975385791,1.53680609,79.249,79.221,1.67049681]
[1771975386379,1.53680609,79.249,79.225,1.67049681]
[1771975387571,4.89235613,79.25,79.222,12.6227563]
[1771975387572,1.53680609,79.247,79.222,12.6227563]
[1771975388380,1.53680609,79.245,79.216,12.62365623]
[1771975388692,12.61893344,79.246,79.212,12.62431923]
[1771975388693,4.89235613,79.24,79.212,12.62431923]
[1771975388877,1.53680609,79.229,79.201,12.6261032]
[1771975389773,1.53680609,79.229,79.201,14.29660001]
[1771975390092,1.53680609,79.229,79.202,1.67049681]
[1771975392090,1.53680609,79.219,79.2,0.2]
[1771975392885,1.53680609,79.209,79.191,12.6276133]
[1771975393193,1.53680609,79.209,79.18,0.2]
[1771975393194,1.53680609,79.209,79.181,1.67049681]
[1771975393998,1.53680609,79.209,79.18,0.2]
[1771975393999,1.53680609,79.207,79.18,12.82932734]
[1771975394582,1.53680609,79.199,79.18,0.2]
[1771975395993,1.53680609,79.199,79.18,14.49993579]
[1771975396292,1.53680609,79.199,79.181,1.67049681]
[1771975398503,1.53680609,79.198,79.18,0.2]
[1771975398994,12.62578411,79.204,79.182,1.67049681]
[1771975399178,1.53680609,79.203,79.182,1.67049681]
[1771975401106,12.62594378,79.202,79.182,1.67049681]
[1771975401397,1.53680609,79.201,79.182,1.67049681]
[1771975402298,1.53680609,79.201,79.18,0.2]
[1771975402480,1.53680609,79.199,79.18,0.2]
[1771975403493,14.16335258,79.199,79.18,0.2]
[1771975403785,1.53680609,79.198,79.18,1.87049681]
[1771975404504,1.53680609,79.205,79.181,1.67049681]
[1771975408492,1.63652573,79.209,79.182,1.56514137]
[1771975410694,1.63652573,79.207,79.182,1.56514137]
[1771975410997,4.89235613,79.2,79.182,1.56514137]
[1771975411812,12.62498737,79.208,79.184,1.56514137]
[1771975414111,1.63652573,79.207,79.186,1.56514137]
[1771975415710,1.63652573,79.207,79.183,12.62882084]
[1771975416912,1.63652573,79.205,79.183,12.62882084]
[1771975417218,1.63652573,79.205,79.184,1.56514137]
[1771975418626,1.63652573,79.213,79.186,1.56514137]
[1771975418919,12.62346454,79.218,79.191,1.56514137]
[1771975420430,4.89235613,79.24,79.201,1.56514137]
[1771975420601,1.63652573,79.239,79.201,1.56514137]
[1771975420805,1.63652573,79.237,79.203,1.56514137]
[1771975422530,4.89235613,79.23,79.205,1.56514137]
[1771975423221,6.52888186,79.23,79.205,1.56514137]
[1771975425227,1.63652573,79.239,79.207,1.56514137]
[1771975428525,1.63652573,79.239,79.211,1.56514137]
[1771975428724,12.61973221,79.241,79.211,1.56514137]
[1771975429128,14.25625794,79.241,79.211,1.56514137]
[1771975429516,1.63652573,79.24,79.212,12.62434984]
[1771975429710,1.63652573,79.24,79.213,1.56514137]
[1771975431133,1.63652573,79.248,79.215,1.56514137]
[1771975431432,1.63652573,79.239,79.207,1.56514137]
[1771975432538,1.63652573,79.239,79.209,1.56514137]
[1771975433616,1.63652573,79.237,79.21,14.18980997]
[1771975434621,1.63652573,79.237,79.211,1.56514137]
[1771975440041,1.63652573,79.237,79.21,12.6246686]
[1771975440042,1.58894239,79.235,79.212,14.14175777]
[1771975440644,1.58894239,79.235,79.213,1.51740793]
[1771975440839,5.36086188,79.266,79.213,1.51740793]
[1771975440840,4.8996973,79.26,79.213,1.51740793]
[1771975441039,1.58894239,79.264,79.221,1.51740793]
[1771975442632,1.58894239,79.264,79.223,1.51740793]
[1771975443232,3.69383402,79.288,79.223,1.51740793]
[1771975443233,1.58894239,79.283,79.241,1.51740793]
[1771975443436,1.58894239,79.299,79.251,1.51740793]
[1771975443725,1.58894239,79.289,79.251,1.51740793]
[1771975446142,1.58894239,79.287,79.253,1.51740793]
[1771975446845,12.61224901,79.288,79.253,1.51740793]
[1771975447047,12.60970442,79.304,79.271,1.51740793]
[1771975447223,4.9996973,79.31,79.281,1.51740793]
[1771975447224,12.60915004,79.308,79.281,1.51740793]
[1771975448345,12.60915004,79.308,79.258,3.69383402]
[1771975448346,12.60787295,79.316,79.283,1.51740793]
[1771975448548,50.39358972,79.376,79.311,1.51740793]
[1771975448549,12.60414172,79.339,79.311,1.51740793]
[1771975448724,4.8996973,79.35,79.311,1.51740793]
[1771975448926,12.603921,79.341,79.311,1.51740793]
[1771975449338,12.60414172,79.339,79.311,1.51740793]
[1771975449544,12.60360975,79.343,79.311,1.51740793]
[1771975449932,12.6028035,79.348,79.311,1.51740793]
[1771975450344,4.8996973,79.35,79.313,1.51740793]
[1771975450652,12.60334744,79.344,79.313,1.51740793]
[1771975451455,1.58894239,79.329,79.305,1.51740793]
[1771975453047,14.19483186,79.328,79.305,1.51740793]
[1771975453253,14.19483186,79.328,79.29,4.8996973]
[1771975453254,1.58894239,79.327,79.297,1.51740793]
[1771975454236,0.91338498,79.327,79.297,1.51740793]
[1771975457557,12.60620729,79.326,79.301,1.51740793]
[1771975463062,1.28926571,79.337,79.301,1.51740793]
[1771975463265,1.28926571,79.337,79.311,1.51740793]
[1771975466063,44.11616416,79.336,79.311,1.51740793]
[1771975466873,12.60461833,79.336,79.321,1.55078856]
[1771975467849,1.30020841,79.335,79.312,1.55078856]
[1771975468053,1.30020841,79.333,79.312,1.55078856]
[1771975470273,12.60525386,79.332,79.312,1.55078856]
[1771975478377,1.31571222,79.331,79.305,38.25923791]
[1771975478589,1.31571222,79.329,79.305,30.05836961]
[1771975479783,1.3170264,79.327,79.305,30.05836961]
[1771975480373,0.2,79.332,79.311,1.55078856]
[1771975480667,0.2,79.332,79.31,4.8996973]
[1771975480866,0.2,79.332,79.312,1.55078856]
[1771975481382,12.60541276,79.331,79.312,1.55078856]
[1771975481563,12.60541276,79.331,79.312,1.35078856]
[1771975485971,1.52171539,79.351,79.313,1.0975568]
[1771975486576,0.2,79.331,79.313,1.0975568]
[1771975486766,1.52171539,79.347,79.315,0.89864306]
[1771975487579,1.52171539,79.347,79.315,0.90030033]
[1771975487884,12.84394641,79.345,79.315,0.90030033]
[1771975488281,12.84394641,79.345,79.32,4.8996973]
[1771975488589,12.84394641,79.345,79.321,0.90193857]
[1771975489687,12.84394641,79.345,79.322,12.60684299]
[1771975489887,0.2406843,79.345,79.323,0.90355798]
[1771975490091,12.60238692,79.351,79.323,0.66287368]
[1771975490278,12.60238692,79.351,79.33,4.8996973]
[1771975490578,12.60096523,79.359,79.341,0.6644745]
[1771975493094,1.52171539,79.359,79.315,13.29375]
[1771975493303,1.52171539,79.359,79.331,0.69627541]
[1771975493974,1.52171539,79.359,79.34,4.8843276]
[1771975495170,1.62745661,79.357,79.34,4.8843276]
[1771975500883,31.59834318,79.37,79.34,4.8843276]
[1771975500884,0.1,79.37,79.351,0.77241882]
[1771975501087,1.62745661,79.376,79.36,4.8843276]
[1771975502288,1.62745661,79.376,79.36,5.67456299]
[1771975502615,12.59779034,79.379,79.36,5.67456299]
[1771975502616,0.1,79.38,79.37,4.8843276]
[1771975502894,1.72589845,79.418,79.37,4.8843276]
[1771975503095,12.59252179,79.413,79.39,4.8843276]
[1771975503691,14.31842024,79.413,79.39,4.8843276]
[1771975503895,1.72589845,79.412,79.39,4.8843276]
[1771975504296,1.72589845,79.412,79.39,17.48028317]
[1771975504784,1.72589845,79.418,79.39,17.48028317]
[1771975505721,1.72589845,79.424,79.391,0.02773321]
[1771975506012,1.72589845,79.424,79.39,17.48028317]
[1771975506013,0.07226756,79.42,79.41,4.8843276]
[1771975506179,1.73976467,79.436,79.41,4.8843276]
[1771975506503,1.73976467,79.436,79.411,12.59271385]
[1771975507179,1.73976467,79.434,79.4,4.8843276]
[1771975507392,1.73976467,79.434,79.389,12.5962035]
[1771975507393,1.73976467,79.429,79.39,4.8843276]
[1771975507982,1.73976467,79.419,79.38,4.8843276]
[1771975509207,1.73976467,79.417,79.381,12.59747294]
[1771975510920,1.73976467,79.409,79.37,4.8843276]
[1771975511225,1.73976467,79.407,79.371,12.59906011]
[1771975511429,1.73976467,79.407,79.371,12.65178295]
[1771975511809,1.73976467,79.407,79.372,0.05272284]
[1771975512012,4.8843276,79.4,79.36,4.8843276]
[1771975512214,1.73976467,79.399,79.36,4.8843276]
[1771975512536,44.0761636,79.408,79.351,12.60223563]
[1771975512537,1.73976467,79.389,79.351,12.60223563]
[1771975512823,1.73976467,79.389,79.35,4.8843276]
[1771975513029,1.73976467,79.377,79.342,12.60358868]
[1771975513229,0.66758238,79.377,79.342,12.60358868]
[1771975513809,4.8843276,79.37,79.335,12.60464816]
[1771975514009,4.8843276,79.37,79.331,12.60533028]
[1771975514818,4.8843276,79.37,79.332,1.15164094]
[1771975515130,1.62745661,79.367,79.333,12.60509497]
[1771975515710,12.59792253,79.379,79.351,1.16061608]
[1771975515911,1.62745661,79.378,79.351,1.16061608]
[1771975516310,1.62745661,79.378,79.345,1.16945122]
[1771975516521,1.62745661,79.378,79.35,4.8843276]
[1771975516833,1.62745661,79.378,79.345,1.16945122]
[1771975517032,1.62745661,79.369,79.34,4.8843276]
[1771975517214,1.62745661,79.367,79.333,12.60509497]
[1771975517729,1.62745661,79.367,79.333,13.78334261]
[1771975518033,1.62745661,79.367,79.34,4.8843276]
[1771975519132,1.62745661,79.365,79.34,4.8843276]
[1771975519428,1.62745661,79.365,79.338,12.60424174]
[1771975519634,1.62745661,79.365,79.34,4.8843276]
[1771975520524,1.62745661,79.365,79.341,1.20388573]
[1771975521613,12.60017136,79.364,79.341,1.20388573]
[1771975521815,14.22762797,79.364,79.341,1.20388573]
[1771975523222,1.62745661,79.363,79.341,1.20388573]
[1771975523633,1.62745661,79.363,79.34,4.8843276]
[1771975524136,1.62745661,79.361,79.337,12.60432683]
[1771975524315,1.62745661,79.361,79.33,4.8843276]
[1771975524316,1.62745661,79.361,79.333,12.60507741]
[1771975524514,12.60048889,79.362,79.329,1.22871097]
[1771975524515,1.62745661,79.359,79.329,23.55836961]
[1771975526339,1.62745661,79.359,79.306,102.0]
[1771975526340,1.71473015,79.349,79.31,6.15255228]
[1771975526544,1.71473015,79.349,79.31,4.8843276]
[1771975526917,1.71473015,79.339,79.308,12.60897897]
[1771975527113,1.71473015,79.339,79.305,13.8777701]
[1771975527839,1.71473015,79.339,79.305,12.60954542]
[1771975528039,1.71473015,79.339,79.31,6.1601715]
[1771975528341,1.71473015,79.339,79.31,1.2758439]
[1771975528938,14.31801063,79.345,79.312,1.28340267]
[1771975529142,1.71473015,79.344,79.312,1.28340267]
[1771975530539,1.71473015,79.344,79.314,1.29821358]
[1771975530921,12.60350629,79.343,79.314,1.29821358]
[1771975531127,1.71473015,79.342,79.314,1.29821358]
[1771975531730,1.71473015,79.342,79.313,12.60827354]
[1771975532019,1.71473015,79.339,79.313,12.60827354]
[1771975532349,1.71473015,79.339,79.314,1.30551208]
[1771975532641,1.71473015,79.346,79.314,1.30551208]
[1771975533635,1.71473015,79.344,79.316,1.3198554]
[1771975534949,14.31823644,79.343,79.32,6.21120169]
[1771975535848,14.31823644,79.343,79.321,1.33381125]
[1771975536946,1.71473015,79.342,79.321,13.94077218]
[1771975539048,12.603824,79.341,79.321,13.94077218]
[1771975540044,0.2,79.333,79.321,13.94077218]
[1771975545854,0.4,79.333,79.321,13.94077218]
[1771975547856,0.4,79.333,79.321,13.74077218]
[1771975548363,1.71473015,79.359,79.322,23.55836961]
[1771975548661,1.71473015,79.359,79.33,4.8843276]
[1771975549144,5.36086188,79.397,79.323,23.55836961]
[1771975549145,1.71473015,79.379,79.34,4.8843276]
[1771975549652,1.71473015,79.379,79.341,1.02372872]
[1771975550557,1.71473015,79.379,79.343,1.02990854]
[1771975551658,1.71473015,79.377,79.345,1.03599294]
[1771975553657,4.88360833,79.38,79.345,1.03599294]
[1771975553658,1.71473015,79.375,79.346,12.60302976]
[1771975553867,4.88360833,79.36,79.33,1.04797177]
[1771975554161,12.59826647,79.376,79.324,23.55836961]
[1771975554162,1.71473015,79.349,79.324,1.04797177]
[1771975554460,1.71473015,79.349,79.325,24.61220169]
[1771975554666,1.71473015,79.349,79.326,1.05383208]
[1771975556562,1.71473015,79.349,79.326,12.60620729]
[1771975556864,1.80713807,79.347,79.326,12.60620729]
[1771975557171,1.80713807,79.347,79.326,13.67613288]
[1771975558647,1.80713807,79.347,79.327,1.08033892]
[1771975559667,1.80713807,79.347,79.331,1.08547089]
[1771975560050,12.6022214,79.352,79.331,1.08547089]
[1771975560368,1.80713807,79.351,79.331,1.08547089]
[1771975560746,4.88360833,79.36,79.333,1.09054399]
[1771975560747,1.80713807,79.357,79.333,1.09054399]
[1771975565866,1.80713807,79.357,79.335,1.1150211]
[1771975566362,1.80713807,79.357,79.335,0.99438005]
[1771975570196,1.80713807,79.357,79.337,1.0133035]
[1771975571686,1.80713807,79.357,79.339,12.60414172]
[1771975576388,1.80713807,79.357,79.339,13.64854635]
[1771975576575,1.80713807,79.365,79.341,1.04440463]
[1771975576880,1.80713807,79.365,79.342,1.04440463]
[1771975578474,1.80713807,79.365,79.344,1.05277698]
[1771975579980,1.80713807,79.364,79.344,1.05277698]
[1771975580180,1.99245521,79.349,79.304,23.55836961]
[1771975580381,1.99245521,79.339,79.305,23.55836961]
[1771975580678,1.99245521,79.329,79.305,23.55836961]
[1771975580888,1.99245521,79.329,79.306,23.55836961]
[1771975581264,1.99245521,79.329,79.306,36.16775603]
[1771975582687,1.99245521,79.319,79.291,23.55836961]
[1771975582986,1.89245521,79.309,79.281,0.21458686]
[1771975583179,1.89245521,79.309,79.291,0.21458686]
[1771975585290,1.99149867,79.318,79.292,12.84895215]
[1771975585692,1.99149867,79.318,79.293,0.23733938]
[1771975586090,1.99149867,79.318,79.292,12.61161277]
[1771975589186,1.99149867,79.318,79.294,12.61129467]
[1771975590294,17.49077958,79.32,79.293,23.55836961]
[1771975590295,1.99149867,79.309,79.293,23.55836961]
[1771975591492,1.99149867,79.307,79.283,12.61295136]
[1771975593792,1.99149867,79.297,79.277,12.61399901]
[1771975594092,12.61081755,79.297,79.276,0.26289174]
[1771975594292,1.99149867,79.296,79.276,0.26289174]
[1771975596201,2.47215037,98.303,79.26,0.27621336]
[1771975596202,1.99149867,79.289,79.26,0.27621336]
[1771975597087,1.99149867,79.289,79.261,0.27621336]
[1771975597483,12.60493609,79.334,79.281,1.96346207]
[1771975597796,4.88360833,79.32,79.281,1.96346207]
[1771975597994,4.88360833,79.31,79.281,1.96346207]
[1771975598198,4.88360833,79.32,79.281,1.96346207]
[1771975598408,4.88360833,79.32,79.283,1.96346207]
[1771975598409,12.6073198,79.319,79.283,1.96346207]
[1771975599378,1.99149867,79.318,79.283,1.96346207]
[1771975601599,1.99149867,79.309,79.28,4.88360833]
[1771975601782,1.99149867,79.309,79.28,1.96346207]
[1771975602294,1.99149867,79.309,79.28,14.57686686]
[1771975603186,1.99149867,79.309,79.272,1.96346207]
[1771975603385,44.12673196,79.317,79.273,23.55836961]
[1771975603386,1.99149867,79.299,79.273,23.55836961]
[1771975603592,1.99149867,79.297,79.273,23.55836961]
[1771975604185,1.99149867,79.297,79.274,12.61447637]
[1771975605607,1.99149867,79.297,79.276,14.5776202]
[1771975605809,1.99149867,79.295,79.276,14.5776202]
[1771975606792,1.99149867,79.295,79.277,23.55836961]
[1771975607488,1.99149867,79.293,79.277,23.55836961]
[1771975607805,1.99149867,79.293,79.278,23.55836961]
[1771975609214,1.99149867,79.291,79.278,18.3209262]
[1771975611286,1.99149867,79.289,79.278,18.3209262]
[1771975611909,1.99149867,79.289,79.278,12.45214405]
[1771975612703,1.99149867,79.289,79.266,2.03768519]
[1771975612704,1.99149867,79.289,79.267,3.55214405]
[1771975613008,1.99149867,79.289,79.268,2.03768519]
[1771975613586,5.36086188,79.326,79.269,2.03768519]
[1771975613786,79.11138989,79.379,79.268,12.61543119]
[1771975613787,12.59747294,79.381,79.321,2.03768519]
[1771975613994,4.88360833,79.37,79.331,2.03768519]
[1771975614210,6.58579912,79.351,79.324,2.03768519]
[1771975614424,4.88360833,79.36,79.324,2.03768519]
[1771975615303,4.88515521,79.36,79.331,2.03768519]
[1771975615503,4.88515521,79.35,79.331,2.03768519]
[1771975615703,4.88515521,79.35,79.31,4.88515521]
[1771975615704,17.48766954,79.35,79.324,2.03768519]
[1771975616521,4.88515521,79.34,79.311,2.03768519]
[1771975619830,12.60414172,79.339,79.311,2.03768519]
[1771975620132,12.60414172,79.339,79.312,2.03768519]
[1771975622331,4.88515521,79.34,79.306,2.03768519]
[1771975622921,12.60255327,79.349,79.321,2.03768519]
[1771975624840,31.50299925,79.358,79.321,2.03768519]
[1771975625848,4.88515521,79.35,79.321,2.03768519]
[1771975627531,12.60255327,79.349,79.321,2.03768519]
[1771975628349,4.88515521,79.34,79.321,2.03768519]
[1771975629648,12.60414172,79.339,79.321,2.03768519]
[1771975631840,4.88515521,79.33,79.321,2.03768519]
[1771975632053,12.60414172,79.339,79.321,2.03768519]
[1771975632759,1.5163342,79.329,79.306,16.16138133]
[1771975632938,1.5163342,79.329,79.306,3.55214405]
[1771975633137,1.5163342,79.329,79.307,3.55214405]
[1771975634058,12.60588947,79.328,79.307,16.16137148]
[1771975634257,12.60588947,79.328,79.307,3.55214405]
[1771975634754,12.60588947,79.328,79.308,1.93442992]
[1771975634949,12.60588947,79.328,79.309,1.93442992]
[1771975635956,1.45800031,79.335,79.307,3.55214405]
[1771975635957,12.60528902,79.332,79.311,1.93442992]
[1771975638246,4.88515521,79.33,79.311,1.93442992]
[1771975638751,6.23045437,79.33,79.311,1.93442992]
[1771975639357,1.31792825,79.319,79.28,1.93442992]
[1771975639660,4.88515521,79.3,79.28,1.93442992]
[1771975640458,17.49561172,79.3,79.28,1.93442992]
[1771975649469,4.88515521,79.29,79.275,34.2]
[1771975649668,1.01299541,79.289,79.275,34.2]
[1771975650761,12.61224901,79.288,79.268,1.50964766]
[1771975651071,4.88515521,79.28,79.268,1.50964766]
[1771975651372,31.52664632,79.298,79.269,1.50964766]
[1771975651373,4.88515521,79.29,79.269,1.50964766]
[1771975652171,12.61157018,79.293,79.27,1.50964766]
[1771975652374,4.88515521,79.29,79.27,1.50964766]
[1771975656576,12.61208994,79.289,79.27,1.50964766]
[1771975660176,4.88515521,79.3,79.272,1.50964766]
[1771975660376,4.88515521,79.31,79.274,1.50964766]
[1771975662581,19.06279426,79.31,79.276,1.50964766]
[1771975663178,1.56883298,79.299,79.276,1.50964766]
[1771975665569,1.56883298,79.299,79.278,1.50964766]
[1771975666489,1.56883298,79.297,79.271,1.50964766]
[1771975666683,1.56883298,79.289,79.271,1.50964766]
[1771975667567,1.56883298,79.289,79.272,1.50964766]
[1771975667783,1.56883298,79.289,79.273,12.6146355]
[1771975668173,4.88515521,79.28,79.27,34.2]
[1771975668370,4.88515521,79.28,79.269,1.50964766]
[1771975668584,1.56883298,79.287,79.269,1.50964766]
[1771975669193,12.61213393,79.289,79.269,1.50964766]
[1771975669695,4.88515521,79.3,79.271,1.50964766]
[1771975671692,12.6104995,79.299,79.273,1.50964766]
[1771975673180,14.17933248,79.299,79.273,1.50964766]
[1771975674190,14.17933248,79.299,79.276,1.50964766]
[1771975677392,1.56883298,79.299,79.278,1.16253792]
[1771975678595,13.87255609,79.3,79.278,1.16253792]
[1771975679481,1.26211304,79.308,79.278,1.16253792]
[1771975682011,4.89240282,79.31,79.28,1.16253792]
[1771975682186,0.2,98.598,79.28,1.16253792]
[1771975682187,1.26211304,79.329,79.284,3.69383402]
[1771975682381,1.26211304,79.338,79.291,1.16253792]
[1771975682598,6.15451586,79.33,79.292,1.16253792]
[1771975682807,1.26211304,79.329,79.292,1.16253792]
[1771975684208,12.60588947,79.328,79.294,1.16253792]
[1771975685991,12.6053501,79.332,79.296,1.16253792]
[1771975688503,1.26211304,79.332,79.297,12.61081755]
[1771975688712,1.26211304,79.332,79.298,1.16253792]
[1771975691699,13.8675258,79.331,79.301,1.16253792]
[1771975692202,1.26211304,79.338,79.301,1.16253792]
[1771975697316,1.26211304,79.336,79.303,1.16253792]
[1771975697707,1.26211304,79.336,79.305,1.16253792]
[1771975703510,1.26211304,79.336,79.307,1.16253792]
[1771975703710,1.26211304,79.336,79.309,1.16253792]
[1771975705612,1.26211304,79.336,79.311,1.01869128]
[1771975707322,0.99561441,79.334,79.311,1.01869128]
[1771975709224,0.99561441,79.341,79.313,1.01869128]
[1771975709518,0.99561441,79.341,79.315,1.01869128]
[1771975709727,12.60255327,79.349,79.317,1.01869128]
[1771975709728,0.99561441,79.348,79.317,1.01869128]
[1771975712129,12.60096523,79.359,79.32,4.89240282]
[1771975712329,50.36765746,79.417,79.34,4.89240282]
[1771975712330,4.89240282,79.38,79.34,4.89240282]
[1771975712630,0.99561441,79.366,79.341,1.01869128]
[1771975713627,0.99561441,79.366,79.343,1.01869128]
[1771975714724,13.59555062,79.366,79.345,1.01869128]
[1771975714925,0.99561441,79.366,79.345,1.01869128]
[1771975715108,12.59926651,79.37,79.345,1.01869128]
[1771975715624,0.99561441,79.372,79.345,1.01869128]
[1771975716027,0.99561441,79.379,79.351,1.01869128]
[1771975716228,13.59270752,79.384,79.351,1.01869128]
[1771975716436,0.99561441,79.383,79.351,1.01869128]
[1771975716612,0.99561441,79.381,79.353,1.01869128]
[1771975720023,0.99561441,79.379,79.355,1.01869128]
[1771975720929,62.9629593,79.412,79.354,12.6017592]
[1771975720930,0.99561441,79.386,79.357,1.01869128]
[1771975722628,12.59620877,79.389,79.359,1.01869128]
[1771975723935,0.99561441,79.391,79.362,1.01869128]
[1771975724132,0.99561441,79.379,79.355,34.2]
[1771975724332,0.99561441,79.379,79.339,12.60414172]
[1771975724536,0.99561441,79.359,79.339,12.60414172]
[1771975725348,0.99561441,79.408,79.353,3.69383402]
[1771975725521,0.99561441,79.399,79.353,3.69383402]
[1771975726228,0.99561441,79.397,79.354,12.6017592]
[1771975726430,0.99561441,79.389,79.354,44.10615721]
[1771975727531,0.99561441,79.389,79.355,1.01869128]
[1771975729324,56.76,79.478,79.343,3.69383402]
[1771975729325,12.59382398,79.404,79.361,1.01869128]
[1771975729529,0.99561441,79.403,79.361,1.01869128]
[1771975729924,0.99561441,79.399,79.361,1.01869128]
[1771975732142,0.99561441,79.397,79.363,1.01869128]
[1771975735642,0.99561441,79.397,79.36,4.89240282]
[1771975735643,0.79975481,79.395,79.365,0.79109885]
[1771975738150,13.39433031,79.4,79.371,0.79109885]
[1771975738459,13.39433031,79.4,79.373,0.79109885]
[1771975738751,0.79975481,79.399,79.373,0.79109885]
[1771975740036,0.79975481,79.399,79.374,12.59858391]
[1771975740234,0.79975481,79.399,79.375,0.79109885]
[1771975740737,12.6929285,79.41,79.381,0.79109885]
[1771975741851,0.79975481,79.409,79.381,0.79109885]
[1771975742463,0.94245062,79.459,79.4,4.87902374]
[1771975742644,0.94245062,79.449,79.42,4.87902374]
[1771975744437,0.94245062,79.449,79.421,12.59112829]
[1771975744669,0.94245062,79.449,79.43,4.87902374]
[1771975744867,0.94245062,79.467,79.43,4.87902374]
[1771975745775,0.1,79.47,79.45,4.87902374]
[1771975746467,0.1,79.47,79.451,12.58637399]
[1771975746661,0.94245062,79.492,79.461,0.69605423]
[1771975746855,0.94245062,79.492,79.47,5.57507797]
[1771975747469,0.94245062,79.492,79.471,0.68872037]
[1771975748373,0.94245062,79.492,79.451,12.58637399]
[1771975748374,0.81558549,79.491,79.451,12.58637399]
[1771975748571,0.81558549,79.487,79.45,4.87902374]
[1771975749768,0.81558549,79.485,79.451,12.58637399]
[1771975751649,0.81558549,79.469,79.405,1.25936653]
[1771975751866,0.81558549,79.459,79.43,4.87902374]
[1771975752167,0.81558549,79.459,79.42,4.87902374]
[1771975753161,0.81558549,79.459,79.421,44.06894901]
[1771975753366,0.81558549,79.459,79.422,0.03466974]
[1771975753749,0.81558549,79.459,79.43,4.87902374]
[1771975754156,12.19217707,79.46,79.43,4.87902374]
[1771975754355,4.87902374,79.46,79.427,0.03466974]
[1771975755364,4.87902374,79.45,79.412,0.79109885]
[1771975755549,4.87902374,79.45,79.414,0.79109885]
[1771975755970,4.87902374,79.45,79.42,4.87902374]
[1771975756177,0.79975481,79.449,79.421,0.79109885]
[1771975756359,0.79975481,79.449,79.422,12.59096975]
[1771975756677,0.79975481,79.449,79.422,13.3820686]
[1771975757681,0.79975481,79.449,79.423,0.79109885]
[1771975758778,0.79975481,79.449,79.425,0.79109885]
[1771975759560,0.79975481,79.449,79.424,12.59065269]
[1771975762062,0.79975481,79.447,79.424,12.59065269]
[1771975762875,0.79975481,79.447,79.424,13.38175154]
[1771975763079,0.79975481,79.447,79.426,13.3814345]
[1771975768082,0.82020527,79.453,79.43,4.87902374]
[1771975768383,0.82020527,79.453,79.431,0.81218102]
[1771975768576,0.82020527,79.46,79.441,0.81218102]
[1771975770669,0.82020527,79.471,79.442,12.5877999]
[1771975770869,0.82020527,79.471,79.443,0.81218102]
[1771975773688,0.82020527,79.469,79.445,0.81218102]
[1771975774693,0.82020527,79.469,79.443,34.2]
[1771975775371,0.82020527,79.469,79.443,46.7875328]
[1771975776470,0.82020527,79.467,79.443,46.7875328]
[1771975777390,4.87902374,79.48,79.444,0.81218102]
[1771975777595,0.82020527,79.479,79.451,0.81218102]
[1771975779789,0.2,79.469,79.453,0.81218102]
[1771975781497,0.2,79.469,79.453,0.61218102]
[1771975782105,0.2,79.469,79.454,12.58589875]
[1771975783606,0.2,79.469,79.455,0.81218102]
[1771975786220,0.2,79.469,79.456,12.58558195]
[1771975786398,0.2,79.469,79.456,13.39776297]
[1771975790816,0.82020527,79.475,79.456,13.39776297]
[1771975791029,0.82020527,79.475,79.457,0.81218102]
[1771975793116,0.82020527,79.487,79.459,0.81218102]
[1771975793310,0.82020527,79.487,79.461,0.81218102]
[1771975793518,13.40087883,79.487,79.461,0.81218102]
[1771975793816,0.82020527,79.486,79.461,0.81218102]
[1771975794022,0.2,79.475,79.461,0.81218102]
[1771975795618,0.92628615,79.486,79.461,0.67990402]
[1771975797219,0.92628615,79.486,79.47,4.87902374]
[1771975797524,0.92628615,79.486,79.471,12.58320645]
[1771975797719,0.92628615,79.491,79.472,0.69544549]
[1771975797917,0.92628615,79.503,79.472,0.69544549]
[1771975798421,0.24264698,79.492,79.48,4.87902374]
[1771975798604,4.87902374,79.52,79.48,4.87902374]
[1771975798605,0.95769457,79.539,79.48,9.75804748]
[1771975798926,0.95769457,79.539,79.5,4.87902374]
[1771975799219,0.95769457,79.539,79.51,4.86255993]
[1771975799426,0.95769457,79.537,79.511,12.57687615]
[1771975800423,0.1,79.55,79.53,4.86255993]
[1771975801224,0.95769457,79.539,79.511,12.57687615]
[1771975801419,0.95769457,79.537,79.511,12.57687615]
[1771975801620,0.95769457,79.537,79.441,50.3517281]
[1771975801820,0.95769457,79.537,79.439,50.3527951]
[1771975801821,0.95769457,79.509,79.47,4.86255993]
[1771975802018,0.95769457,79.509,79.452,17.02596748]
[1771975802019,0.95769457,79.499,79.452,17.02596748]
[1771975802324,0.95769457,79.499,79.47,4.86255993]
[1771975803110,0.95769457,79.497,79.47,4.86255993]
[1771975803627,0.18097315,79.489,79.46,4.86255993]
[1771975803926,0.18097315,79.489,79.461,12.58479002]
[1771975804919,0.18097315,79.489,79.46,4.86255993]
[1771975805518,4.86255993,79.49,79.46,4.86255993]
[1771975805519,12.58051529,79.488,79.46,17.44750324]
[1771975805822,0.92628615,79.487,79.46,17.44750324]
[1771975806525,0.92628615,79.485,79.46,17.44750324]
[1771975806708,0.92628615,79.485,79.46,18.27010096]
[1771975808729,13.50743455,79.484,79.46,18.27010096]
[1771975809318,0.92628615,79.483,79.46,18.27010096]